bitfinex/quotes_ETHUSD_20250112
["timestamp","ask_amount","ask_price","bid_price","bid_amount"]
[1736695897321,0.02758756,3292.5,3291.9,2.15680305]
[1736695898054,0.8254,3292.4,3291.9,2.15680305]
[1736695898254,0.02757181,3292.3,3291.9,2.12643]
[1736695898429,0.8254,3292.4,3291.9,2.12643]
[1736695899073,0.8254,3292.4,3291.4,0.015]
[1736695899244,0.02756393,3292.3,3291.6,2.1266]
[1736695899631,0.02756393,3292.3,3291.4,0.015]
[1736695899939,0.02756393,3292.3,3291.8,2.5305717]
[1736695900139,0.02756393,3292.3,3292.1,2.12629]
[1736695900374,0.8254,3292.4,3292.1,2.12629]
[1736695900930,0.8254,3292.4,3292.2,5.03037072]
[1736695901143,0.8254,3292.4,3292.3,2.18195]
[1736695901646,0.8254,3292.4,3292.2,0.03037072]
[1736695904635,0.8254,3292.4,3292.3,4.78176]
[1736695904857,0.8254,3292.4,3292.3,2.438]
[1736695906036,0.8254,3292.4,3292.2,0.03037072]
[1736695906238,0.02746941,3292.3,3292.2,0.03037072]
[1736695906581,0.8254,3292.4,3292.2,0.03037072]
[1736695906876,0.02746941,3292.3,3292.2,0.03037072]
[1736695907063,0.8254,3292.4,3292.2,0.03037072]
[1736695907265,0.02746941,3292.3,3292.2,0.03037072]
[1736695907436,0.8254,3292.4,3292.2,0.03037072]
[1736695907779,0.02746941,3292.3,3292.2,0.03037072]
[1736695908179,0.8254,3292.4,3292.2,0.03037072]
[1736695908553,0.02746941,3292.3,3292.2,0.03037072]
[1736695908759,0.02746941,3292.3,3291.9,5.1264]
[1736695908945,0.8254,3292.4,3291.9,5.1264]
[1736695909144,0.02746941,3292.2,3291.9,5.1264]
[1736695909345,0.8254,3292.4,3291.9,5.1264]
[1736695909541,0.8254,3292.4,3291.9,3.0]
[1736695909741,0.02746941,3292.3,3291.8,2.12649]
[1736695910056,0.8254,3292.4,3291.8,2.12649]
[1736695910595,0.8254,3292.4,3291.6,3.62150725]
[1736695910765,0.8254,3292.4,3291.6,2.1266]
[1736695911084,0.02675243,3292.3,3291.6,5.1266]
[1736695912103,0.02675243,3292.3,3291.6,2.1266]
[1736695915051,0.02675243,3292.3,3291.4,2.12673]
[1736695915257,0.7565,3292.1,3291.4,2.12673]
[1736695915806,0.02675243,3292.0,3291.4,2.12673]
[1736695915953,0.7565,3292.1,3291.4,2.12673]
[1736695916154,0.02675243,3291.9,3291.4,2.12673]
[1736695916378,0.7565,3292.1,3291.5,0.03037672]
[1736695916599,0.02675243,3291.8,3291.5,0.03037672]
[1736695916764,0.7565,3292.1,3291.5,0.03037672]
[1736695917289,0.02675243,3292.0,3291.4,2.12673]
[1736695917690,0.02675243,3292.0,3291.5,0.03037671]
[1736695918017,0.02675243,3292.0,3291.4,2.12673]
[1736695918926,0.02675243,3292.0,3291.3,3.0]
[1736695919217,0.02675243,3292.0,3291.3,5.12679]
[1736695919411,0.7565,3292.1,3291.3,5.12679]
[1736695919911,0.02675243,3292.0,3291.3,5.12679]
[1736695920215,0.7834,3291.9,3291.1,2.12694]
[1736695920417,0.7834,3291.8,3290.8,2.72427839]
[1736695920722,0.7834,3291.7,3290.8,2.1271]
[1736695921034,0.7834,3291.6,3290.7,3.0]
[1736695921332,2.12627,3292.2,3290.7,3.0]
[1736695921333,0.7834,3291.5,3290.7,3.0]
[1736695921475,2.12675,3291.4,3290.6,2.5305717]
[1736695921676,0.7834,3291.3,3290.4,0.7834]
[1736695921879,0.7834,3291.3,3290.5,2.12733]
[1736695922283,0.7834,3291.3,3290.6,2.12726]
[1736695922719,0.7834,3291.3,3290.4,5.12739]
[1736695922914,2.12688,3291.2,3290.2,0.61294031]
[1736695923117,0.7834,3291.1,3290.2,0.61294031]
[1736695923479,0.7834,3291.1,3290.1,3.0]
[1736695923842,0.7834,3291.0,3290.1,3.0]
[1736695924318,0.7834,3290.9,3290.0,4.6582017]
[1736695924696,0.7834,3290.9,3290.1,3.0]
[1736695925734,0.7834,3290.9,3290.1,5.15796077]
[1736695926512,0.7834,3290.9,3290.1,5.12757]
[1736695927030,0.7834,3290.9,3290.1,5.15796075]
[1736695927446,0.7834,3290.9,3290.1,5.12757]
[1736695927596,1.074436,3290.9,3290.1,5.12757]
[1736695927930,0.8096,3290.4,3289.5,2.12795]
[1736695928954,0.8096,3290.4,3289.2,3.0]
[1736695929296,2.1274,3290.4,3289.4,2.12804]
[1736695929495,0.8096,3290.2,3289.4,2.12804]
[1736695929791,0.8096,3290.2,3289.6,2.1279]
[1736695931592,0.8096,3290.2,3289.5,2.5329788]
[1736695931815,0.8096,3290.2,3289.4,2.12803]
[1736695932564,0.8096,3290.2,3289.5,2.15835561]
[1736695932692,0.8096,3290.2,3289.5,4.6609388]
[1736695934934,0.8096,3290.2,3289.2,7.6610988]
[1736695935125,0.8096,3290.1,3289.2,5.5329788]
[1736695935325,0.8096,3290.1,3289.3,2.12805]
[1736695936032,0.8096,3290.1,3289.4,2.12804]
[1736695936239,0.8096,3290.1,3289.5,2.12796]
[1736695936401,0.8096,3290.1,3289.3,2.12809]
[1736695937003,0.8096,3290.1,3289.2,5.5329788]
[1736695937429,0.293714,3290.0,3289.2,5.5329788]
[1736695937599,0.8096,3289.9,3289.2,7.6611388]
[1736695938029,0.8096,3289.9,3289.2,5.5329788]
[1736695938231,0.8096,3289.9,3289.4,2.12804]
[1736695938846,0.8096,3289.9,3289.2,7.6611288]
[1736695939010,0.8096,3289.9,3289.2,5.5329788]
[1736695939214,0.8096,3289.9,3289.4,2.12804]
[1736695939415,0.8096,3289.9,3289.6,2.12788]
[1736695940420,0.8096,3289.9,3289.5,2.56337615]
[1736695940620,0.8096,3289.9,3289.5,2.5329788]
[1736695940864,0.8096,3289.9,3289.5,4.6609488]
[1736695941018,0.8096,3289.9,3289.5,2.12797]
[1736695941352,0.8096,3289.9,3289.2,7.6610888]
[1736695941503,0.8096,3289.9,3289.2,5.5329788]
[1736695941706,0.8096,3289.9,3289.3,2.12809]
[1736695942107,0.8096,3289.9,3289.2,5.5329788]
[1736695942306,0.8096,3289.9,3289.4,2.12803]
[1736695942647,0.8096,3289.9,3289.2,7.6611288]
[1736695942850,0.8096,3289.9,3289.3,2.1281]
[1736695943624,0.8096,3289.9,3289.1,2.12821]
[1736695944334,0.8096,3289.8,3289.1,2.12821]
[1736695944964,0.8096,3289.8,3289.2,2.5329788]
[1736695945276,0.8096,3290.2,3289.5,2.5329788]
[1736695945568,0.8096,3290.4,3290.2,2.5329788]
[1736695945725,0.8096,3290.4,3290.3,2.12746]
[1736695945926,0.8096,3290.4,3290.2,2.5329788]
[1736695946707,0.7983,3291.3,3290.3,0.03038979]
[1736695946909,0.7983,3291.2,3290.5,2.5329788]
[1736695947848,0.7983,3291.2,3290.6,0.03038838]
[1736695948053,0.7983,3291.2,3290.7,2.12719]
[1736695948353,0.7983,3291.2,3290.9,2.12704]
[1736695948521,0.7983,3291.2,3290.8,2.5329788]
[1736695949450,0.7983,3291.2,3290.5,4.6602888]
[1736695950263,0.7983,3291.2,3290.6,0.03038442]
[1736695950558,0.7983,3291.2,3290.6,2.12726]
[1736695950857,0.7983,3291.2,3290.5,2.5329788]
[1736695951156,0.7983,3291.2,3290.6,0.03038525]
[1736695951513,0.7983,3291.2,3290.5,2.5329788]
[1736695951717,0.7983,3291.0,3290.2,2.5329788]
[1736695952711,0.7983,3291.0,3289.9,2.5329788]
[1736695952910,0.7983,3290.6,3289.7,0.225]
[1736695953156,2.12734,3290.5,3289.6,2.5329788]
[1736695953314,0.7983,3290.4,3289.3,2.5329788]
[1736695953511,0.7983,3290.1,3289.3,2.5329788]
[1736695953717,0.7983,3290.1,3289.0,4.6612688]
[1736695953718,0.7983,3290.0,3289.0,4.6612688]
[1736695953982,0.7983,3290.0,3289.1,2.12823]
[1736695954128,0.7983,3290.0,3289.3,2.5329788]
[1736695955971,0.7983,3290.0,3289.3,2.56337697]
[1736695956634,0.7983,3290.0,3289.3,2.5329788]
[1736695956973,1.1201433,3290.0,3289.3,2.5329788]
[1736695957736,1.1201433,3290.0,3289.3,2.56337709]
[1736695958621,1.1201433,3290.0,3289.3,2.5329788]
[1736695960223,0.7983,3290.0,3289.3,2.5329788]
[1736695963037,0.7983,3290.0,3289.1,3.0]
[1736695964385,0.8076,3289.9,3289.1,3.0]
[1736695965159,0.8076,3289.9,3289.0,4.6612588]
[1736695966531,0.8076,3289.8,3289.0,2.5329788]
[1736695966762,0.777,3289.7,3288.5,2.1286]
[1736695966968,0.777,3289.4,3288.5,2.1286]
[1736695967924,0.777,3288.9,3288.3,3.14448115]
[1736695968330,0.777,3288.9,3288.3,0.61150235]
[1736695968530,0.777,3288.9,3288.1,0.005]
[1736695968846,0.290535,3288.8,3288.1,0.005]
[1736695969046,0.777,3288.9,3288.1,2.56838688]
[1736695969241,0.777,3288.9,3288.4,2.12864]
[1736695969848,0.777,3288.9,3288.5,2.12861]
[1736695970167,0.777,3288.9,3288.5,2.15901525]
[1736695970384,0.777,3288.9,3288.5,2.12861]
[1736695970529,0.777,3288.9,3288.1,2.5379788]
[1736695970975,0.777,3288.9,3288.2,0.03040876]
[1736695971271,0.777,3288.9,3288.3,2.12874]
[1736695973872,0.777,3288.9,3288.2,0.03040838]
[1736695974241,0.777,3288.9,3288.2,2.15920838]
[1736695974778,0.777,3288.9,3288.2,2.1288]
[1736695975152,0.777,3288.9,3288.2,2.15920838]
[1736695975351,0.777,3288.9,3288.5,2.1286]
[1736695975551,0.777,3288.9,3288.6,2.12851]
[1736695975951,0.777,3288.9,3288.5,0.03040529]
[1736695976159,0.777,3288.9,3288.2,5.12875]
[1736695976358,0.777,3288.9,3288.3,2.12875]
[1736695977284,0.777,3288.9,3288.2,0.03040783]
[1736695977583,0.777,3288.9,3288.1,2.5379788]
[1736695977755,1.067526,3288.9,3288.1,2.5379788]
[1736695978158,0.8138,3288.8,3288.1,2.5379788]
[1736695978348,0.8138,3288.8,3288.1,0.005]
[1736695978680,0.8138,3288.8,3288.1,4.6668088]
[1736695979080,0.8138,3288.8,3288.2,0.03040744]
[1736695979253,0.8138,3288.8,3288.1,4.6668088]
[1736695979780,1.10801,3288.8,3288.1,0.005]
[1736695979982,0.8138,3288.7,3288.1,0.005]
[1736695982150,0.8138,3288.7,3288.1,0.03541058]
[1736695982644,0.8138,3288.7,3288.2,2.12881]
[1736695983301,0.8138,3288.7,3288.3,0.03040846]
[1736695983469,0.8138,3288.7,3288.1,0.005]
[1736695985282,0.8138,3288.7,3288.2,0.03041003]
[1736695985449,0.8138,3289.3,3288.5,2.53485239]
[1736695985852,0.8138,3289.3,3288.5,2.56525771]
[1736695986183,0.8138,3289.3,3288.5,2.53485239]
[1736695986351,2.94196,3289.3,3288.5,2.53485239]
[1736695986546,2.94196,3289.3,3288.5,2.56525772]
[1736695986786,2.94196,3289.3,3288.5,2.53485239]
[1736695987351,3.236156,3289.3,3288.5,2.53485239]
[1736695988184,0.8138,3289.3,3288.6,0.03040535]
[1736695988392,0.8138,3289.3,3288.6,2.12852]
[1736695988559,0.8138,3289.3,3288.6,5.12852]
[1736695989385,0.8138,3289.3,3288.6,3.0]
[1736695990180,0.8138,3289.3,3288.7,0.03040333]
[1736695990600,0.8138,3289.3,3288.6,3.0]
[1736695990747,0.8138,3289.3,3288.5,2.53485239]
[1736695990947,0.294184,3289.2,3288.2,2.53485239]
[1736695991184,0.7664,3289.1,3288.2,2.53485239]
[1736695991761,2.8947,3289.1,3288.3,3.03040668]
[1736695991987,0.7664,3289.1,3288.3,3.03040668]
[1736695992191,2.89464,3289.1,3288.3,3.0]
[1736695992404,0.3188774,3289.0,3288.3,3.0]
[1736695992696,0.3188774,3289.0,3288.1,0.005]
[1736695992865,2.12844,3288.8,3288.1,0.005]
[1736695993696,0.55,3288.9,3288.1,0.005]
[1736695993999,0.7664,3288.3,3288.1,0.005]
[1736695994762,2.89516,3288.3,3288.1,0.005]
[1736695997892,0.7664,3288.3,3288.1,0.005]
[1736696000394,2.89517,3288.3,3288.1,0.005]
[1736696000696,2.418337,3288.2,3288.1,0.005]
[1736696000996,0.289517,3288.2,3288.1,0.005]
[1736696001565,2.89518,3288.3,3288.1,0.005]
[1736696002094,2.12882,3288.2,3288.1,0.005]
[1736696003561,0.7664,3288.3,3288.1,0.005]
[1736696009087,2.12882,3288.2,3288.1,0.005]
[1736696009286,2.93742,3288.2,3288.1,0.005]
[1736696009479,3.231162,3288.2,3288.1,0.005]
[1736696010699,1.102342,3288.2,3288.1,0.005]
[1736696010888,0.8086,3288.2,3288.1,0.005]
[1736696011310,0.8086,3289.1,3288.1,0.005]
[1736696011511,0.8086,3289.1,3288.3,3.32275239]
[1736696011717,4.66245239,3290.1,3288.5,2.12862]
[1736696011718,0.8086,3289.5,3288.5,2.12862]
[1736696012230,0.8086,3289.5,3288.3,3.32275239]
[1736696012518,0.8086,3289.5,3288.6,2.53485239]
[1736696012738,0.8086,3289.5,3288.7,2.12845]
[1736696012874,3.230236,3289.5,3288.5,2.12861]
[1736696013519,3.230236,3289.5,3288.6,0.03040354]
[1736696013901,3.230236,3289.5,3288.6,0.03040355]
[1736696014279,0.8086,3289.5,3288.6,2.56525594]
[1736696014501,0.8086,3289.5,3288.6,2.53485239]
[1736696015512,0.8086,3289.5,3288.7,0.03040356]
[1736696015820,0.8086,3289.5,3288.7,0.03040357]
[1736696015993,0.8086,3289.5,3288.6,4.66339239]
[1736696016189,0.8086,3289.5,3288.7,0.03040357]
[1736696016389,1.102253,3289.5,3288.6,4.66339239]
[1736696016606,1.102253,3289.5,3288.7,0.0304036]
[1736696017002,0.8086,3289.5,3288.9,4.66320239]
[1736696017208,0.8086,3289.5,3288.8,0.7879]
[1736696017379,0.8086,3289.5,3288.5,2.12861]
[1736696018384,2.93664,3289.5,3288.5,2.12861]
[1736696021202,0.225,3289.9,3288.3,5.53485239]
[1736696021407,0.8086,3289.1,3288.3,2.53485239]
[1736696021624,0.8086,3289.1,3288.2,2.91671]
[1736696021831,2.1283,3289.0,3288.2,0.7879]
[1736696022230,0.8086,3289.1,3288.2,0.7879]
[1736696024932,2.93685,3289.1,3288.2,0.7879]
[1736696025103,2.12801,3289.5,3288.1,0.005]
[1736696025104,2.12845,3288.8,3288.1,0.005]
[1736696025639,0.8086,3288.7,3288.1,0.005]
[1736696027337,0.8191,3288.3,3288.1,0.005]
[1736696029813,2.12882,3288.2,3288.1,0.005]
[1736696030137,3.160802,3288.2,3288.1,0.005]
[1736696034796,0.8191,3288.5,3288.1,0.005]
[1736696035530,2.94773,3288.5,3288.1,0.005]
[1736696035712,2.12874,3288.4,3288.1,0.005]
[1736696036660,2.12877,3288.3,3288.1,0.005]
[1736696036808,0.212877,3288.2,3288.1,0.005]
[1736696037012,2.12882,3288.2,3288.1,0.005]
[1736696037226,2.94792,3288.2,3288.1,0.005]
[1736696038094,3.49792,3288.2,3288.1,0.005]
[1736696040494,3.72292,3288.2,3288.1,0.005]
[1736696040700,4.15495705,3288.2,3288.1,0.005]
[1736696044642,3.60495705,3288.2,3288.1,0.005]
[1736696045347,4.15495705,3288.2,3288.1,0.005]
[1736696048042,3.60495705,3288.2,3288.1,0.005]
[1736696048246,2.94792,3288.2,3288.1,0.005]
[1736696048752,0.7782,3288.6,3288.1,0.005]
[1736696048968,2.90677,3288.6,3288.1,0.005]
[1736696049256,2.12857,3288.6,3288.1,0.7788]
[1736696049457,0.55,3288.7,3288.1,0.005]
[1736696049750,0.55,3288.5,3288.1,0.005]
[1736696050056,2.67882,3288.2,3288.1,0.005]
[1736696050555,3.45702,3288.2,3288.1,0.005]
[1736696052064,3.46452,3288.2,3288.1,0.005]
[1736696052231,7.058472,3288.2,3288.1,0.005]
[1736696053127,7.028472,3288.2,3288.1,0.005]
[1736696053843,7.050972,3288.2,3288.1,0.005]
[1736696055063,7.058472,3288.2,3288.1,0.005]
[1736696061551,7.058472,3288.2,3288.1,1e-05]
[1736696061874,7.050972,3288.2,3288.1,1e-05]
[1736696062096,6.485972,3288.2,3288.1,1e-05]
[1736696062861,7.035972,3288.2,3288.1,1e-05]
[1736696066265,9.57082439,3288.2,3288.1,1e-05]
[1736696067492,9.59332439,3288.2,3288.1,1e-05]
[1736696069518,9.75161057,3288.2,3288.1,1e-05]
[1736696073195,10.00161057,3288.2,3288.1,1e-05]
[1736696074293,6.42675818,3288.2,3288.1,1e-05]
[1736696074515,2.29460618,3288.2,3288.1,1e-05]
[1736696074991,9.20725857,3288.2,3288.1,1e-05]
[1736696075409,9.21475857,3288.2,3288.1,1e-05]
[1736696075607,12.40386441,3288.2,3288.1,1e-05]
[1736696076195,12.80540828,3288.2,3288.1,1e-05]
[1736696076399,14.13344911,3288.2,3288.1,1e-05]
[1736696076612,14.38344911,3288.2,3288.1,1e-05]
[1736696077195,11.19434327,3288.2,3288.1,1e-05]
[1736696077930,10.5427994,3288.2,3288.1,1e-05]
[1736696078608,10.7927994,3288.2,3288.1,1e-05]
[1736696078801,13.98202761,3288.2,3288.1,1e-05]
[1736696078998,10.7927994,3288.2,3288.1,1e-05]
[1736696080830,5.00794701,3288.2,3288.1,1e-05]
[1736696080996,2.28710618,3288.2,3288.1,1e-05]
[1736696081187,2.12882,3288.2,3288.1,1e-05]
[1736696082429,2.67882,3288.2,3288.1,1e-05]
[1736696092732,2.68632,3288.2,3288.1,1e-05]
[1736696092931,3.23254137,3288.2,3288.1,1e-05]
[1736696095235,5.77489376,3288.2,3288.1,1e-05]
[1736696096138,8.32578748,3288.2,3288.1,1e-05]
[1736696097140,9.10938748,3288.2,3288.1,1e-05]
[1736696097506,9.74711091,3288.2,3288.1,1e-05]
[1736696097717,12.74711091,3288.2,3288.1,1e-05]
[1736696097921,9.55849376,3288.2,3288.1,1e-05]
[1736696099607,13.3767628,3288.2,3288.1,1e-05]
[1736696101312,16.98230667,3288.2,3288.1,1e-05]
[1736696104149,13.77830667,3288.2,3288.1,1e-05]
[1736696105420,13.3767628,3288.2,3288.1,1e-05]
[1736696106034,14.19770745,3288.2,3288.1,1e-05]
[1736696106671,10.37943841,3288.2,3288.1,1e-05]
[1736696110141,13.58343841,3288.2,3288.1,1e-05]
[1736696112075,13.83343841,3288.2,3288.1,1e-05]
[1736696112477,14.08343841,3288.2,3288.1,1e-05]
[1736696112682,0.0075,3287.0,3286.5,0.63388992]
[1736696112850,2.67986,3286.6,3286.5,1.40888992]
[1736696113497,2.68736,3286.6,3286.5,1.40888992]
[1736696113647,5.70236,3286.6,3286.5,0.63388992]
[1736696114083,5.70986,3286.6,3286.5,0.63388992]
[1736696114382,6.88362455,3286.6,3286.5,0.63388992]
[1736696114551,2.93385,3286.3,3286.2,2.2e-06]
[1736696114756,9.67774626,3286.3,3286.2,2.2e-06]
[1736696115071,11.06492167,3286.3,3286.2,2.2e-06]
[1736696115376,9.21267702,3286.3,3286.2,2.2e-06]
[1736696115744,9.19767702,3286.3,3286.2,2.2e-06]
[1736696116081,5.68755,3286.3,3286.2,0.7750022]
[1736696116262,5.13005,3286.3,3286.2,0.7750022]
[1736696116463,3.0,3286.3,3286.2,0.7750022]
[1736696116848,1.91168127,3286.5,3286.2,0.7750022]
[1736696117241,4.04135127,3286.9,3286.2,0.7750022]
[1736696117440,0.55,3286.5,3286.2,0.7750022]
[1736696117684,0.62219349,3287.0,3286.2,0.7750022]
[1736696117852,2.12974,3286.8,3286.2,0.7750022]
[1736696118058,0.0075,3287.0,3286.2,0.7750022]
[1736696118260,2.13005,3286.3,3286.2,0.7750022]
[1736696118971,2.68005,3286.3,3286.2,2.2e-06]
[1736696119304,2.68755,3286.3,3286.2,2.2e-06]
[1736696119851,5.68755,3286.3,3286.2,2.2e-06]
[1736696120347,5.70255,3286.3,3286.2,2.2e-06]
[1736696120556,6.295305,3286.3,3286.2,2.2e-06]
[1736696121099,9.42656079,3286.3,3286.2,2.2e-06]
[1736696121481,9.43406079,3286.3,3286.2,2.2e-06]
[1736696129496,2.16031,3285.9,3285.8,1e-08]
[1736696129674,8.24516239,3285.9,3285.8,1e-08]
[1736696129870,9.45265863,3285.9,3285.8,1e-08]
[1736696134978,4.0338,3285.7,3285.1,0.67394726]
[1736696135176,9.07541239,3285.2,3285.1,0.67394726]
[1736696136086,9.07541239,3285.2,3285.1,7.26e-06]
[1736696137816,2.13108,3284.8,3284.4,5.94e-06]
[1736696137991,5.24607239,3284.5,3284.4,5.94e-06]
[1736696138199,5.71161,3283.9,3283.8,0.71400461]
[1736696138381,5.93661,3283.9,3283.8,0.71400461]
[1736696138579,5.93661,3283.9,3282.2,0.7648]
[1736696138580,2.13206,3283.2,3282.2,0.7648]
[1736696138817,8.68511839,3283.2,3282.2,0.7648]
[1736696139179,5.925266,3283.2,3282.2,0.7648]
[1736696139394,8.68511839,3283.2,3282.2,0.7648]
[1736696140691,5.925266,3283.2,3282.2,0.7648]
[1736696140937,6.150266,3283.2,3283.0,0.9303222]
[1736696141430,5.69706,3283.2,3283.0,0.9303222]
[1736696141633,0.55,3283.2,3283.0,0.9303222]
[1736696142534,2.68206,3283.2,3283.0,0.9303222]
[1736696142709,0.55,3283.2,3283.0,0.9303222]
[1736696143363,0.55,3283.2,3283.0,0.1655222]
[1736696143959,0.55,3283.2,3283.1,1.50383328]
[1736696144156,0.55,3283.2,3283.1,1.53953124]
[1736696144822,3.0,3283.4,3283.1,1.53953124]
[1736696145021,0.015,3283.2,3283.1,1.53953124]
[1736696145222,2.69706,3283.2,3283.1,1.53953124]
[1736696145432,2.69706,3283.2,3283.1,1.50383328]
[1736696146128,2.69706,3283.2,3283.1,0.73903328]
[1736696146555,2.69706,3283.2,3283.1,0.77473124]
[1736696146751,3.297666,3283.2,3283.1,0.77473124]
[1736696146943,6.297666,3283.2,3283.1,0.77473124]
[1736696147123,6.297666,3283.2,3283.1,0.73903328]
[1736696148325,6.312666,3283.2,3283.1,0.73903328]
[1736696149267,6.93500539,3283.2,3283.1,0.73903328]
[1736696149444,6.83500539,3283.2,3283.1,0.73903328]
[1736696150246,6.212666,3283.2,3283.1,0.73903328]
[1736696151585,6.227666,3283.2,3283.1,0.73903328]
[1736696152729,6.197666,3283.2,3283.1,0.73903328]
[1736696153546,6.205166,3283.2,3283.1,0.73903328]
[1736696154541,4.158106,3283.2,3283.1,0.73903328]
[1736696155360,4.150606,3283.2,3283.1,0.73903328]
[1736696155558,3.55,3283.2,3283.1,0.73903328]
[1736696155944,3.55,3283.2,3283.1,0.77473124]
[1736696157183,5.68206,3283.2,3283.1,0.73903328]
[1736696157345,8.21691239,3283.2,3283.1,0.73903328]
[1736696157537,9.14410363,3283.2,3283.1,0.77448554]
[1736696157742,9.14410363,3283.2,3283.1,0.73903328]
[1736696158282,9.17410363,3283.2,3283.1,0.73903328]
[1736696158649,9.33235832,3283.2,3283.1,0.73903328]
[1736696160078,6.77500593,3283.2,3283.1,0.73903328]
[1736696160386,3.55,3283.2,3283.1,0.73903328]
[1736696160569,5.68206,3283.2,3283.1,0.73903328]
[1736696160789,5.68206,3283.2,3283.1,0.77443006]
[1736696160988,8.24691239,3283.2,3283.1,0.77443006]
[1736696161148,9.23518043,3283.2,3283.1,0.77443006]
[1736696161483,9.32869847,3283.2,3283.1,0.73903328]
[1736696162375,10.15869847,3283.2,3283.1,0.73903328]
[1736696162684,10.99236493,3283.2,3283.1,0.73903328]
[1736696164069,10.99236493,3283.2,3283.1,3.28e-06]
[1736696164256,11.04797765,3283.2,3283.1,3.28e-06]
[1736696165464,10.21797765,3283.2,3283.1,3.28e-06]
[1736696166554,0.25,3282.8,3282.4,0.75406196]
[1736696166752,9.07737239,3282.5,3282.4,0.75406196]
[1736696166952,9.98510963,3282.5,3282.4,0.75406196]
[1736696167762,12.51996202,3282.5,3282.4,0.75406196]
[1736696168091,9.98510963,3282.5,3282.4,1.96e-06]
[1736696168291,10.04072235,3282.5,3282.4,1.96e-06]
[1736696170086,9.43572235,3282.5,3282.4,1.96e-06]
[1736696170573,10.20392235,3282.5,3282.4,1.96e-06]
[1736696172452,9.43572235,3282.5,3282.4,1.96e-06]
[1736696172996,5.29548511,3282.5,3282.4,1.96e-06]
[1736696173155,2.18813272,3282.5,3282.4,1.96e-06]
[1736696173363,2.13252,3282.5,3282.4,0.79030196]
[1736696173997,2.68252,3282.5,3282.4,0.79030196]
[1736696174298,2.13241,3282.7,3282.4,0.79030196]
[1736696174469,2.55735239,3283.1,3282.4,0.79030196]
[1736696174470,2.35727,3282.9,3282.4,0.79030196]
[1736696174798,2.13227,3282.9,3282.4,0.79030196]
[1736696175093,2.13227,3282.9,3282.5,0.82319025]
[1736696175297,0.15826804,3283.2,3282.5,0.82319025]
[1736696175469,2.13221,3283.0,3282.5,0.82319025]
[1736696175671,3.0,3283.1,3282.5,0.82319025]
[1736696175869,2.13228,3282.9,3282.5,0.7903]
[1736696176087,0.55,3282.8,3282.6,0.03264471]
[1736696177100,2.13215,3283.1,3282.6,0.03264471]
[1736696177599,0.55,3282.7,3282.6,0.03264471]
[1736696177799,2.68239,3282.7,3282.6,0.03264471]
[1736696178096,3.55,3282.6,3282.4,1.96e-06]
[1736696178276,0.55,3282.5,3282.4,1.96e-06]
[1736696178802,8.24737239,3282.5,3282.4,1.96e-06]
[1736696179003,9.36069863,3282.5,3282.4,1.96e-06]
[1736696181372,9.96053445,3282.5,3282.4,1.96e-06]
[1736696184081,10.01614717,3282.5,3282.4,1.96e-06]
[1736696184507,10.24514717,3282.5,3282.4,1.96e-06]
[1736696185083,9.46614717,3282.5,3282.4,1.96e-06]
[1736696185285,9.69514717,3282.5,3282.4,1.96e-06]
[1736696185686,10.01614717,3282.5,3282.4,1.96e-06]
[1736696186019,10.24514717,3282.5,3282.4,1.96e-06]
[1736696194291,2.78796854,3282.5,3282.4,1.96e-06]
[1736696194487,0.05561272,3282.5,3282.4,0.81410196]
[1736696194808,4.68137836,3282.6,3282.4,0.81410196]
[1736696195200,3.0,3282.7,3282.4,0.81410196]
[1736696195522,2.13232,3282.8,3282.4,0.81410196]
[1736696196121,0.55,3282.6,3282.4,0.81410196]
[1736696196438,0.818239,3282.6,3282.4,0.81410196]
[1736696196612,2.68252,3282.5,3282.4,0.81410196]
[1736696196936,2.68252,3282.5,3282.4,1.96e-06]
[1736696196937,5.71252,3282.5,3282.4,1.96e-06]
[1736696197339,8.24737239,3282.5,3282.4,1.96e-06]
[1736696197624,5.71252,3282.5,3282.4,1.96e-06]
[1736696197830,5.71252,3282.5,3282.4,0.81410196]
[1736696198000,6.53866284,3282.5,3282.4,0.81410196]
[1736696198200,6.53866284,3282.5,3282.4,1.96e-06]
[1736696198405,6.50866284,3282.5,3282.4,1.96e-06]
[1736696198714,5.68252,3282.5,3282.4,1.96e-06]
[1736696199116,2.13239,3282.7,3282.5,0.8141]
[1736696199352,2.13245,3282.6,3282.5,0.8141]
[1736696200168,5.68245,3282.6,3282.5,0.8141]
[1736696200347,3.0,3282.6,3282.5,0.8141]
[1736696200676,3.0,3282.6,3282.5,0.84633888]
[1736696201153,0.015,3283.3,3282.5,0.84633888]
[1736696201457,2.13222,3283.0,3282.5,0.84633888]
[1736696201949,3.55,3282.9,3282.5,0.84633888]
[1736696202331,2.13209,3283.2,3282.5,0.84633888]
[1736696202525,0.55,3282.9,3282.5,0.84633888]
[1736696202714,3.55,3282.9,3282.5,0.84633888]
[1736696203332,2.68206,3283.2,3282.5,0.84633888]
[1736696203729,0.55,3283.2,3282.5,0.84633888]
[1736696203935,2.13221,3283.0,3282.5,0.84633888]
[1736696204994,2.700431,3283.0,3282.5,0.84633888]
[1736696205196,3.0,3282.9,3282.5,0.84633888]
[1736696206676,0.55,3283.2,3282.5,0.84633888]
[1736696206883,2.68208,3283.2,3282.5,0.84633888]
[1736696207261,0.15834269,3283.3,3282.6,0.03046316]
[1736696207453,0.15834269,3283.3,3282.7,0.7624]
[1736696207654,0.15834269,3283.3,3282.7,0.79339581]
[1736696207854,2.29036269,3283.3,3282.7,0.79339581]
[1736696208388,2.68194,3283.4,3282.7,0.79339581]
[1736696208812,3.0,3283.3,3282.7,0.79339581]
[1736696209308,3.0,3283.3,3282.7,0.82385582]
[1736696209444,3.0,3283.3,3282.7,0.79339581]
[1736696210348,0.55,3283.6,3282.7,0.79339581]
[1736696210548,2.13188,3283.5,3282.7,0.79339581]
[1736696210774,2.13175,3283.7,3282.8,0.79285793]
[1736696211144,2.13175,3283.7,3282.9,0.03077418]
[1736696211381,2.13175,3283.7,3282.9,0.79317418]
[1736696211883,2.13175,3283.7,3283.0,0.03045591]